[Event "*** Titled Tuesday Blitz"]
[Site "Chess.com"]
[Date "2021.02.02"]
[Round "10"]
[White "Kostukov_Alex"]
[Black "salomez"]
[Result "1-0"]
[WhiteElo "2311"]
[BlackElo "2202"]
[TimeControl "180+1"]
[EndTime "11:55:00 PST"]
[Termination "Kostukov_Alex won by resignation"]

1. g3 {[%clk 0:03:00.6]} 1... d5 {[%clk 0:02:57]} 2. Bg2 {[%clk 0:03:00.8]} 2...
Nf6 {[%clk 0:02:55.4]} 3. d3 {[%clk 0:03:01]} 3... e5 {[%clk 0:02:55.7]} 4. e4
{[%clk 0:03:01.4]} 4... dxe4 {[%clk 0:02:53.4]} 5. dxe4 {[%clk 0:03:02.3]} 5...
Qxd1+ {[%clk 0:02:53.2]} 6. Kxd1 {[%clk 0:03:03.2]} 6... Bg4+ {[%clk 0:02:48.9]}
7. f3 {[%clk 0:03:03.2]} 7... Be6 {[%clk 0:02:48.9]} 8. Be3 {[%clk 0:03:03.7]}
8... Nbd7 {[%clk 0:02:44.8]} 9. Nd2 {[%clk 0:03:04.3]} 9... Bc5 {[%clk
0:02:44.8]} 10. Ke2 {[%clk 0:03:03.9]} 10... Bxe3 {[%clk 0:02:44]} 11. Kxe3
{[%clk 0:03:04.5]} 11... O-O-O {[%clk 0:02:44]} 12. Bh3 {[%clk 0:03:04.9]} 12...
Nc5 {[%clk 0:02:39.8]} 13. b3 {[%clk 0:03:02.3]} 13... Rd4 {[%clk 0:02:32.4]}
14. Bxe6+ {[%clk 0:02:51.3]} 14... Nxe6 {[%clk 0:02:28.7]} 15. Ne2 {[%clk
0:02:51.7]} 15... Rd7 {[%clk 0:02:26.3]} 16. Nc4 {[%clk 0:02:51.9]} 16... Nd4
{[%clk 0:02:05.8]} 17. Nxd4 {[%clk 0:02:22.8]} 17... exd4+ {[%clk 0:02:04.7]}
18. Kd3 {[%clk 0:02:18.4]} 18... Re8 {[%clk 0:02:01.5]} 19. a4 {[%clk
0:02:15.5]} 19... c6 {[%clk 0:02:01.4]} 20. a5 {[%clk 0:02:12.9]} 20... Kc7
{[%clk 0:02:01.4]} 21. Rhe1 {[%clk 0:02:08.6]} 21... Ng8 {[%clk 0:01:58.4]} 22.
f4 {[%clk 0:02:05]} 22... Nh6 {[%clk 0:01:53.5]} 23. h3 {[%clk 0:02:01]} 23...
f6 {[%clk 0:01:53.7]} 24. g4 {[%clk 0:02:00]} 24... Nf7 {[%clk 0:01:53]} 25. Re2
{[%clk 0:01:54.9]} 25... Nd6 {[%clk 0:01:51.6]} 26. Nxd6 {[%clk 0:01:46.8]}
26... Rxd6 {[%clk 0:01:51.7]} 27. Kc4 {[%clk 0:01:44.8]} 27... Red8 {[%clk
0:01:46]} 28. Rd1 {[%clk 0:01:43.3]} 28... b6 {[%clk 0:01:42.1]} 29. axb6+
{[%clk 0:01:42.6]} 29... axb6 {[%clk 0:01:42.2]} 30. Red2 {[%clk 0:01:29.8]}
30... c5 {[%clk 0:01:41.7]} 31. b4 {[%clk 0:01:12.9]} 31... Kc6 {[%clk
0:01:34.7]} 32. bxc5 {[%clk 0:01:07.5]} 32... bxc5 {[%clk 0:01:34.8]} 33. Ra1
{[%clk 0:01:07.7]} 33... Rb8 {[%clk 0:01:27.8]} 34. Ra6+ {[%clk 0:01:01]} 34...
Kc7 {[%clk 0:01:18]} 35. Ra7+ {[%clk 0:00:53.4]} 35... Kc6 {[%clk 0:01:12.4]}
36. c3 {[%clk 0:00:48.5]} 36... dxc3 {[%clk 0:00:56.1]} 37. Ra6+ {[%clk
0:00:47.3]} 1-0

[Event "*** Titled Tuesday Blitz"]
[Site "Chess.com"]
[Date "2021.02.02"]
[Round "10"]
[White "dopolian"]
[Black "VladaSviridova"]
[Result "1-0"]
[WhiteElo "2416"]
[BlackElo "2248"]
[TimeControl "180+1"]
[EndTime "11:55:07 PST"]
[Termination "dopolian won by resignation"]

1. Nf3 {[%clk 0:03:00.3]} 1... d5 {[%clk 0:02:59.5]} 2. c4 {[%clk 0:02:59.8]}
2... c6 {[%clk 0:02:59.4]} 3. b3 {[%clk 0:02:59.5]} 3... Nf6 {[%clk 0:02:59.1]}
4. Bb2 {[%clk 0:03:00.2]} 4... e6 {[%clk 0:02:58.7]} 5. g3 {[%clk 0:02:59.1]}
5... Bd6 {[%clk 0:02:57.9]} 6. Bg2 {[%clk 0:02:57.9]} 6... O-O {[%clk
0:02:57.2]} 7. O-O {[%clk 0:02:57.9]} 7... Nbd7 {[%clk 0:02:57.6]} 8. d4 {[%clk
0:02:53.5]} 8... b6 {[%clk 0:02:57.2]} 9. Nbd2 {[%clk 0:02:51.2]} 9... Bb7
{[%clk 0:02:57.5]} 10. Qc2 {[%clk 0:02:49]} 10... Rc8 {[%clk 0:02:57.4]} 11. e4
{[%clk 0:02:48.7]} 11... dxe4 {[%clk 0:02:55.5]} 12. Nxe4 {[%clk 0:02:49.6]}
12... Nxe4 {[%clk 0:02:54.6]} 13. Qxe4 {[%clk 0:02:50.5]} 13... Nf6 {[%clk
0:02:55.2]} 14. Qe2 {[%clk 0:02:50.6]} 14... c5 {[%clk 0:02:48.3]} 15. Rfd1
{[%clk 0:02:50.2]} 15... Qe7 {[%clk 0:02:38.3]} 16. Rd2 {[%clk 0:02:37.4]} 16...
cxd4 {[%clk 0:02:31]} 17. Nxd4 {[%clk 0:02:33.2]} 17... Bxg2 {[%clk 0:02:30.2]}
18. Kxg2 {[%clk 0:02:34.1]} 18... Rfd8 {[%clk 0:02:05.4]} 19. Rad1 {[%clk
0:02:32.5]} 19... h6 {[%clk 0:01:59.2]} 20. Qf3 {[%clk 0:02:23.9]} 20... Qe8
{[%clk 0:01:04.7]} 21. Nf5 {[%clk 0:02:10.7]} 21... exf5 {[%clk 0:00:47.6]} 22.
Bxf6 {[%clk 0:01:58.2]} 22... gxf6 {[%clk 0:00:33.9]} 23. Rxd6 {[%clk
0:01:56.5]} 23... Rxd6 {[%clk 0:00:34.1]} 24. Rxd6 {[%clk 0:01:56.9]} 24... Qe4
{[%clk 0:00:34]} 25. Rxf6 {[%clk 0:01:50.8]} 25... Kg7 {[%clk 0:00:19.5]} 26.
Rxf5 {[%clk 0:01:48.5]} 26... Qxf3+ {[%clk 0:00:19.7]} 27. Kxf3 {[%clk
0:01:47.2]} 27... Kg6 {[%clk 0:00:19.7]} 28. Rd5 {[%clk 0:01:47]} 28... Re8
{[%clk 0:00:19.4]} 29. Rd7 {[%clk 0:01:46.1]} 29... a5 {[%clk 0:00:18.6]} 30.
Rd6+ {[%clk 0:01:46]} 30... f6 {[%clk 0:00:19.1]} 31. Rxb6 {[%clk 0:01:46]}
31... Re1 {[%clk 0:00:19.1]} 32. Rb5 {[%clk 0:01:45.5]} 32... Rh1 {[%clk
0:00:15.5]} 33. Rxa5 {[%clk 0:01:43.5]} 33... Rxh2 {[%clk 0:00:15.5]} 34. c5
{[%clk 0:01:43.4]} 34... Rh1 {[%clk 0:00:15.6]} 35. c6 {[%clk 0:01:42.2]} 35...
Rc1 {[%clk 0:00:15.9]} 36. Ra6 {[%clk 0:01:42.8]} 36... Kf5 {[%clk 0:00:15.4]}
37. b4 {[%clk 0:01:42.2]} 37... Ke5 {[%clk 0:00:15.4]} 38. b5 {[%clk 0:01:42.5]}
38... Kd6 {[%clk 0:00:15.8]} 39. a4 {[%clk 0:01:42]} 39... Rc5 {[%clk
0:00:15.3]} 40. Ra7 {[%clk 0:01:41.1]} 40... f5 {[%clk 0:00:14.4]} 41. Rd7+
{[%clk 0:01:41.5]} 41... Ke6 {[%clk 0:00:14.4]} 42. Rd3 {[%clk 0:01:41.2]} 42...
Rc4 {[%clk 0:00:13.3]} 43. Rb3 {[%clk 0:01:40]} 43... Kd6 {[%clk 0:00:13.1]} 44.
b6 {[%clk 0:01:38.7]} 44... Kxc6 {[%clk 0:00:11.3]} 45. b7 {[%clk 0:01:38.8]}
1-0

[Event "*** Titled Tuesday Blitz"]
[Site "Chess.com"]
[Date "2021.02.02"]
[Round "10"]
[White "ChessWarrior7197"]
[Black "Paralinch"]
[Result "1-0"]
[WhiteElo "2939"]
[BlackElo "2900"]
[TimeControl "180+1"]
[EndTime "11:55:09 PST"]
[Termination "ChessWarrior7197 won by resignation"]

1. e4 {[%clk 0:03:00.9]} 1... c5 {[%clk 0:03:00]} 2. Nf3 {[%clk 0:03:00.5]} 2...
d6 {[%clk 0:03:00.6]} 3. d4 {[%clk 0:02:58.6]} 3... cxd4 {[%clk 0:03:00.9]} 4.
Nxd4 {[%clk 0:02:59.5]} 4... Nf6 {[%clk 0:03:01.2]} 5. f3 {[%clk 0:02:59.8]}
5... e5 {[%clk 0:02:59.7]} 6. Nb3 {[%clk 0:03:00]} 6... Be7 {[%clk 0:02:59.7]}
7. c4 {[%clk 0:02:59.6]} 7... a5 {[%clk 0:02:59.7]} 8. Be3 {[%clk 0:03:00.1]}
8... O-O {[%clk 0:02:58.6]} 9. Nc3 {[%clk 0:02:59.2]} 9... Nc6 {[%clk
0:02:56.5]} 10. Bd3 {[%clk 0:02:56.5]} 10... Nh5 {[%clk 0:02:54]} 11. Qd2 {[%clk
0:02:53.4]} 11... Nf4 {[%clk 0:02:46.5]} 12. O-O {[%clk 0:02:48.4]} 12... Bg5
{[%clk 0:02:45.9]} 13. Nd5 {[%clk 0:02:45.8]} 13... Be6 {[%clk 0:02:26.5]} 14.
g3 {[%clk 0:02:38.8]} 14... Nh3+ {[%clk 0:02:16.2]} 15. Kg2 {[%clk 0:02:38.1]}
15... h6 {[%clk 0:01:49.8]} 16. Nc1 {[%clk 0:02:35.9]} 16... Bxe3 {[%clk
0:01:45.7]} 17. Qxe3 {[%clk 0:02:35.6]} 17... Ng5 {[%clk 0:01:46.3]} 18. Kh1
{[%clk 0:02:24.6]} 18... Bh3 {[%clk 0:01:39.8]} 19. Rf2 {[%clk 0:02:23]} 19...
f5 {[%clk 0:01:39.4]} 20. exf5 {[%clk 0:02:23.1]} 20... Bxf5 {[%clk 0:01:37.6]}
21. Bxf5 {[%clk 0:02:19.6]} 21... Rxf5 {[%clk 0:01:38.5]} 22. Ne2 {[%clk
0:02:20.5]} 22... Qf8 {[%clk 0:01:32.6]} 23. Raf1 {[%clk 0:02:16]} 23... Re8
{[%clk 0:01:31.8]} 24. h4 {[%clk 0:02:11.9]} 24... Ne6 {[%clk 0:01:28.5]} 25.
Nec3 {[%clk 0:02:12.1]} 25... Nc5 {[%clk 0:01:22.3]} 26. Ne4 {[%clk 0:02:11.1]}
26... Nd4 {[%clk 0:01:20]} 27. Kg2 {[%clk 0:02:08]} 27... Kh8 {[%clk 0:01:19.5]}
28. Nxc5 {[%clk 0:01:56.7]} 28... dxc5 {[%clk 0:01:19.7]} 29. Qe4 {[%clk
0:01:57.6]} 29... Qd6 {[%clk 0:01:12.3]} 30. f4 {[%clk 0:01:54.9]} 30... h5
{[%clk 0:00:40.2]} 31. Ne3 {[%clk 0:01:40.7]} 31... Rff8 {[%clk 0:00:38.4]} 32.
f5 {[%clk 0:01:36.7]} 32... Qc6 {[%clk 0:00:36.3]} 33. Nd5 {[%clk 0:01:35.8]}
33... b5 {[%clk 0:00:36.7]} 34. b3 {[%clk 0:01:35.3]} 34... a4 {[%clk
0:00:36.5]} 35. f6 {[%clk 0:01:35.1]} 35... a3 {[%clk 0:00:20.1]} 36. Kh2 {[%clk
0:01:30]} 36... Rf7 {[%clk 0:00:16.8]} 37. fxg7+ {[%clk 0:01:29.5]} 37... Rxg7
{[%clk 0:00:17.3]} 38. Rf8+ {[%clk 0:01:29.9]} 38... Rg8 {[%clk 0:00:16.6]} 39.
Rxg8+ {[%clk 0:01:28.1]} 39... Rxg8 {[%clk 0:00:16.4]} 40. Qxe5+ {[%clk
0:01:27.7]} 1-0

[Event "*** Titled Tuesday Blitz"]
[Site "Chess.com"]
[Date "2021.02.02"]
[Round "10"]
[White "ARTHURMOTIVATOR"]
[Black "Chessbard1972"]
[Result "0-1"]
[WhiteElo "2304"]
[BlackElo "2415"]
[TimeControl "180+1"]
[EndTime "11:55:11 PST"]
[Termination "Chessbard1972 won by resignation"]

1. e4 {[%clk 0:03:00.9]} 1... c5 {[%clk 0:03:00]} 2. b3 {[%clk 0:02:59.5]} 2...
d5 {[%clk 0:02:59.2]} 3. exd5 {[%clk 0:02:58.6]} 3... Qxd5 {[%clk 0:02:59.2]} 4.
Nf3 {[%clk 0:02:57.5]} 4... Nf6 {[%clk 0:02:57.6]} 5. Nc3 {[%clk 0:02:56.3]}
5... Qd8 {[%clk 0:02:57.1]} 6. Bb5+ {[%clk 0:02:52.8]} 6... Bd7 {[%clk
0:02:56.2]} 7. Bxd7+ {[%clk 0:02:49.8]} 7... Nbxd7 {[%clk 0:02:54.8]} 8. O-O
{[%clk 0:02:50.7]} 8... e6 {[%clk 0:02:43.3]} 9. Bb2 {[%clk 0:02:40.1]} 9... Be7
{[%clk 0:02:42.5]} 10. d3 {[%clk 0:02:40.3]} 10... O-O {[%clk 0:02:42]} 11. Ne4
{[%clk 0:02:38.6]} 11... h6 {[%clk 0:02:38.2]} 12. Qe2 {[%clk 0:02:34.5]} 12...
b6 {[%clk 0:02:37.1]} 13. Rad1 {[%clk 0:02:29.7]} 13... Qc7 {[%clk 0:02:35.2]}
14. Rfe1 {[%clk 0:02:09.7]} 14... Rad8 {[%clk 0:02:33.3]} 15. c4 {[%clk
0:01:57.6]} 15... Rfe8 {[%clk 0:02:32]} 16. Nc3 {[%clk 0:01:49.4]} 16... a6
{[%clk 0:02:28.3]} 17. d4 {[%clk 0:01:38.3]} 17... cxd4 {[%clk 0:02:27.3]} 18.
Rxd4 {[%clk 0:01:35.3]} 18... Nc5 {[%clk 0:02:23.1]} 19. Rxd8 {[%clk 0:01:34.2]}
19... Rxd8 {[%clk 0:02:21.9]} 20. Ne5 {[%clk 0:01:31.6]} 20... Bd6 {[%clk
0:02:18.4]} 21. b4 {[%clk 0:01:21.7]} 21... Bxe5 {[%clk 0:02:06.1]} 22. bxc5
{[%clk 0:01:20.7]} 22... Bxh2+ {[%clk 0:01:57.1]} 23. Kh1 {[%clk 0:01:18.3]}
23... Bf4 {[%clk 0:01:56.7]} 24. cxb6 {[%clk 0:01:10.5]} 24... Qxb6 {[%clk
0:01:51.6]} 25. g3 {[%clk 0:00:48.6]} 25... Rd2 {[%clk 0:01:48.1]} 26. Qf3
{[%clk 0:00:41.2]} 26... Qxb2 {[%clk 0:01:44.9]} 27. gxf4 {[%clk 0:00:36.5]}
27... Rxf2 {[%clk 0:01:42.4]} 28. Qg3 {[%clk 0:00:32.3]} 28... Nh5 {[%clk
0:01:37.8]} 29. Qh3 {[%clk 0:00:26.8]} 29... Nxf4 {[%clk 0:01:36.2]} 30. Qg3
{[%clk 0:00:23.4]} 30... Qb7+ {[%clk 0:01:21.3]} 31. Ne4 {[%clk 0:00:20.3]}
31... Re2 {[%clk 0:01:10.2]} 32. Rxe2 {[%clk 0:00:12.2]} 32... Nxe2 {[%clk
0:01:09.3]} 33. Qf3 {[%clk 0:00:13.1]} 33... Qxe4 {[%clk 0:01:05.5]} 0-1

[Event "*** Titled Tuesday Blitz"]
[Site "Chess.com"]
[Date "2021.02.02"]
[Round "10"]
[White "dianamirza"]
[Black "Nachsueb"]
[Result "0-1"]
[WhiteElo "1917"]
[BlackElo "2172"]
[TimeControl "180+1"]
[EndTime "11:55:14 PST"]
[Termination "Nachsueb won by resignation"]

1. d4 {[%clk 0:03:00.9]} 1... Nf6 {[%clk 0:02:58.4]} 2. Nf3 {[%clk 0:02:55.9]}
2... d5 {[%clk 0:02:56.5]} 3. e3 {[%clk 0:02:51.5]} 3... e6 {[%clk 0:02:54.4]}
4. Bd3 {[%clk 0:02:49.4]} 4... c5 {[%clk 0:02:51.8]} 5. b3 {[%clk 0:02:46.1]}
5... Nc6 {[%clk 0:02:51.9]} 6. Bb2 {[%clk 0:02:43.6]} 6... Be7 {[%clk
0:02:52.4]} 7. O-O {[%clk 0:02:32.2]} 7... O-O {[%clk 0:02:51.2]} 8. Ne5 {[%clk
0:02:31.8]} 8... cxd4 {[%clk 0:02:49.6]} 9. exd4 {[%clk 0:02:10.5]} 9... Bd7
{[%clk 0:02:46.1]} 10. f4 {[%clk 0:02:07.5]} 10... Rc8 {[%clk 0:02:41.9]} 11.
Nd2 {[%clk 0:02:04.5]} 11... Be8 {[%clk 0:02:25.8]} 12. g4 {[%clk 0:01:58.9]}
12... Nd7 {[%clk 0:02:20.1]} 13. g5 {[%clk 0:01:52.5]} 13... f6 {[%clk
0:02:02.2]} 14. g6 {[%clk 0:00:57.6]} 14... fxe5 {[%clk 0:01:43.4]} 15. gxh7+
{[%clk 0:00:57.4]} 15... Kh8 {[%clk 0:01:42.5]} 16. dxe5 {[%clk 0:00:49.7]}
16... Nc5 {[%clk 0:01:33.4]} 17. Nf3 {[%clk 0:00:39.9]} 17... Nxd3 {[%clk
0:01:25]} 18. Qxd3 {[%clk 0:00:40.8]} 18... Nb4 {[%clk 0:01:25]} 19. Qd1 {[%clk
0:00:14.9]} 19... Bg6 {[%clk 0:01:22.6]} 20. Ng5 {[%clk 0:00:14.3]} 20... Bxg5
{[%clk 0:01:15.4]} 21. fxg5 {[%clk 0:00:15.2]} 21... Qb6+ {[%clk 0:01:14.1]} 22.
Bd4 {[%clk 0:00:12.8]} 22... Rxf1+ {[%clk 0:01:13.4]} 23. Kxf1 {[%clk
0:00:11.8]} 23... Rf8+ {[%clk 0:01:07.1]} 24. Ke2 {[%clk 0:00:10]} 24... Qb5+
{[%clk 0:00:59.8]} 25. Ke3 {[%clk 0:00:08.1]} 25... Nxc2+ {[%clk 0:00:58.7]} 0-1

[Event "*** Titled Tuesday Blitz"]
[Site "Chess.com"]
[Date "2021.02.02"]
[Round "10"]
[White "Sergienko_Sergey"]
[Black "ZenBull"]
[Result "1-0"]
[WhiteElo "2394"]
[BlackElo "2257"]
[TimeControl "180+1"]
[EndTime "11:55:17 PST"]
[Termination "Sergienko_Sergey won by resignation"]

1. e4 {[%clk 0:02:59.8]} 1... c5 {[%clk 0:02:59.6]} 2. Nf3 {[%clk 0:02:59]} 2...
e6 {[%clk 0:03:00]} 3. d3 {[%clk 0:02:57.7]} 3... Nc6 {[%clk 0:02:58.3]} 4. g3
{[%clk 0:02:57.1]} 4... d5 {[%clk 0:02:52.1]} 5. Nbd2 {[%clk 0:02:53]} 5... Nf6
{[%clk 0:02:51.2]} 6. Bg2 {[%clk 0:02:52.5]} 6... Be7 {[%clk 0:02:51.5]} 7. O-O
{[%clk 0:02:51.4]} 7... Qc7 {[%clk 0:02:51.6]} 8. Re1 {[%clk 0:02:50.2]} 8...
O-O {[%clk 0:02:49.7]} 9. e5 {[%clk 0:02:44.9]} 9... Nd7 {[%clk 0:02:49.1]} 10.
Qe2 {[%clk 0:02:44.7]} 10... Nd4 {[%clk 0:02:47.7]} 11. Nxd4 {[%clk 0:02:42.2]}
11... cxd4 {[%clk 0:02:48.6]} 12. Nf3 {[%clk 0:02:39.4]} 12... Bc5 {[%clk
0:02:46.9]} 13. Bf4 {[%clk 0:02:26.1]} 13... b5 {[%clk 0:02:45.8]} 14. h4 {[%clk
0:02:24.5]} 14... Bb7 {[%clk 0:02:31.1]} 15. h5 {[%clk 0:02:23.2]} 15... Rfc8
{[%clk 0:02:29.6]} 16. h6 {[%clk 0:01:41.5]} 16... g6 {[%clk 0:02:29]} 17. Ng5
{[%clk 0:01:38]} 17... Bf8 {[%clk 0:02:18.7]} 18. Qf3 {[%clk 0:01:32.2]} 18...
Nc5 {[%clk 0:02:03.5]} 19. Bh3 {[%clk 0:01:20.2]} 19... Re8 {[%clk 0:01:48]} 20.
Kg2 {[%clk 0:01:15.6]} 20... Rac8 {[%clk 0:01:43.7]} 21. Re2 {[%clk 0:01:07.6]}
21... Na4 {[%clk 0:01:43]} 22. Rb1 {[%clk 0:01:03.8]} 22... a5 {[%clk 0:01:35]}
23. Bg4 {[%clk 0:01:02]} 23... b4 {[%clk 0:01:34]} 24. Nh3 {[%clk 0:00:55.1]}
24... Ba6 {[%clk 0:01:29.9]} 25. Bg5 {[%clk 0:00:52.1]} 25... Nc5 {[%clk
0:01:27]} 26. Bf6 {[%clk 0:00:49.8]} 26... Bxh6 {[%clk 0:01:23.6]} 27. Ng5
{[%clk 0:00:47.9]} 27... Bf8 {[%clk 0:01:10.9]} 28. Nxh7 {[%clk 0:00:44.9]}
28... Nd7 {[%clk 0:01:02.6]} 29. Rh1 {[%clk 0:00:42]} 29... Bg7 {[%clk
0:00:54.8]} 30. Bxg7 {[%clk 0:00:36.6]} 30... Kxg7 {[%clk 0:00:54.7]} 31. Ng5
{[%clk 0:00:36.4]} 31... Nf8 {[%clk 0:00:39.6]} 32. Qf6+ {[%clk 0:00:33.7]} 1-0

[Event "*** Titled Tuesday Blitz"]
[Site "Chess.com"]
[Date "2021.02.02"]
[Round "10"]
[White "Annawel"]
[Black "Reader777"]
[Result "1/2-1/2"]
[WhiteElo "2926"]
[BlackElo "2818"]
[TimeControl "180+1"]
[EndTime "11:55:27 PST"]
[Termination "Game drawn by agreement"]

1. f4 {[%clk 0:03:00.9]} 1... d5 {[%clk 0:02:59.1]} 2. Nf3 {[%clk 0:03:01.4]}
2... Nf6 {[%clk 0:02:59]} 3. g3 {[%clk 0:03:01.8]} 3... g6 {[%clk 0:02:58.1]} 4.
Bg2 {[%clk 0:03:02.5]} 4... Bg7 {[%clk 0:02:58.8]} 5. O-O {[%clk 0:03:03.1]}
5... O-O {[%clk 0:02:59.6]} 6. b3 {[%clk 0:03:03.5]} 6... c5 {[%clk 0:02:57.6]}
7. Bb2 {[%clk 0:03:03.8]} 7... Nc6 {[%clk 0:02:58.2]} 8. e3 {[%clk 0:03:04]}
8... Nd7 {[%clk 0:02:56.3]} 9. Bxg7 {[%clk 0:03:03.4]} 9... Kxg7 {[%clk
0:02:57.2]} 10. d4 {[%clk 0:03:03.2]} 10... cxd4 {[%clk 0:02:54]} 11. exd4
{[%clk 0:03:02.8]} 11... Nf6 {[%clk 0:02:52.6]} 12. Nbd2 {[%clk 0:02:58.4]}
12... Bg4 {[%clk 0:02:47.1]} 13. h3 {[%clk 0:02:48.1]} 13... Bxf3 {[%clk
0:02:46.5]} 14. Nxf3 {[%clk 0:02:49]} 14... Ne4 {[%clk 0:02:45.7]} 15. Kh2
{[%clk 0:02:49.5]} 15... Qb6 {[%clk 0:02:40.7]} 16. c4 {[%clk 0:02:43.7]} 16...
Rad8 {[%clk 0:02:29.5]} 17. c5 {[%clk 0:02:41.4]} 17... Qc7 {[%clk 0:02:26.3]}
18. Rc1 {[%clk 0:02:37]} 18... b6 {[%clk 0:02:19.4]} 19. a3 {[%clk 0:02:32.2]}
19... bxc5 {[%clk 0:02:17.8]} 20. dxc5 {[%clk 0:02:33.1]} 20... e5 {[%clk
0:02:06]} 21. fxe5 {[%clk 0:02:11.1]} 21... Nxe5 {[%clk 0:02:06]} 22. Nxe5
{[%clk 0:02:10.9]} 22... Qxe5 {[%clk 0:02:05.7]} 23. Qd3 {[%clk 0:02:11.2]}
23... h5 {[%clk 0:01:53.6]} 24. h4 {[%clk 0:01:59.9]} 24... Nf6 {[%clk
0:01:46.3]} 25. Bf3 {[%clk 0:01:55.6]} 25... Rfe8 {[%clk 0:01:39.6]} 26. c6
{[%clk 0:01:46.4]} 26... Qb2+ {[%clk 0:01:33.2]} 27. Rc2 {[%clk 0:01:44.8]}
27... Qxa3 {[%clk 0:01:32.2]} 28. c7 {[%clk 0:01:34.3]} 28... Rc8 {[%clk
0:01:32]} 29. Qd4 {[%clk 0:01:34.8]} 29... Qd6 {[%clk 0:01:12.2]} 30. Bxd5
{[%clk 0:00:52.2]} 30... Re5 {[%clk 0:00:56.6]} 1/2-1/2

[Event "*** Titled Tuesday Blitz"]
[Site "Chess.com"]
[Date "2021.02.02"]
[Round "10"]
[White "Legendinunknown"]
[Black "Alexander_Moskalenko"]
[Result "1-0"]
[WhiteElo "2602"]
[BlackElo "2789"]
[TimeControl "180+1"]
[EndTime "11:55:28 PST"]
[Termination "Legendinunknown won by checkmate"]

1. d4 {[%clk 0:02:43.5]} 1... Nf6 {[%clk 0:03:00.9]} 2. c4 {[%clk 0:02:41.9]}
2... g6 {[%clk 0:03:01.7]} 3. Nc3 {[%clk 0:02:41.7]} 3... Bg7 {[%clk 0:03:01.5]}
4. e4 {[%clk 0:02:42.3]} 4... O-O {[%clk 0:03:01.9]} 5. Nf3 {[%clk 0:02:41.5]}
5... d6 {[%clk 0:03:02.3]} 6. Be2 {[%clk 0:02:42]} 6... e5 {[%clk 0:03:02.9]} 7.
d5 {[%clk 0:02:42.2]} 7... a5 {[%clk 0:03:01.3]} 8. Bg5 {[%clk 0:02:41.7]} 8...
h6 {[%clk 0:03:00.5]} 9. Be3 {[%clk 0:02:39.3]} 9... Ng4 {[%clk 0:02:58.5]} 10.
Bc1 {[%clk 0:02:39.1]} 10... f5 {[%clk 0:02:57.6]} 11. exf5 {[%clk 0:02:38.4]}
11... gxf5 {[%clk 0:02:57.4]} 12. g3 {[%clk 0:02:38.9]} 12... Na6 {[%clk
0:02:48.1]} 13. Nh4 {[%clk 0:02:38.3]} 13... Nc5 {[%clk 0:02:43.3]} 14. O-O
{[%clk 0:02:34.9]} 14... Bd7 {[%clk 0:02:31.9]} 15. h3 {[%clk 0:02:30.2]} 15...
Nf6 {[%clk 0:02:31]} 16. f4 {[%clk 0:02:30.6]} 16... Nfe4 {[%clk 0:02:30.3]} 17.
Nxe4 {[%clk 0:02:21.4]} 17... Nxe4 {[%clk 0:02:29.1]} 18. Kh2 {[%clk 0:02:21.8]}
18... Qe7 {[%clk 0:02:11.3]} 19. Ng6 {[%clk 0:02:14.8]} 19... Qf6 {[%clk
0:02:11.4]} 20. Nxf8 {[%clk 0:02:14.8]} 20... Rxf8 {[%clk 0:02:12.3]} 21. Bf3
{[%clk 0:02:09.6]} 21... exf4 {[%clk 0:02:11.5]} 22. gxf4 {[%clk 0:02:07.4]}
22... Re8 {[%clk 0:02:01.3]} 23. Rg1 {[%clk 0:01:56.9]} 23... Kh7 {[%clk
0:01:38.7]} 24. Rg2 {[%clk 0:01:54]} 24... Qh4 {[%clk 0:01:37.3]} 25. Qg1 {[%clk
0:01:44.9]} 25... Ng5 {[%clk 0:01:31.7]} 26. fxg5 {[%clk 0:01:12.8]} 26... Be5+
{[%clk 0:01:31.3]} 27. Rg3 {[%clk 0:01:13.3]} 27... hxg5 {[%clk 0:01:31.2]} 28.
Bd2 {[%clk 0:01:06.9]} 28... g4 {[%clk 0:01:30.8]} 29. Qg2 {[%clk 0:00:56.7]}
29... gxh3 {[%clk 0:01:20.8]} 30. Qf2 {[%clk 0:00:41.6]} 30... Rg8 {[%clk
0:01:12.6]} 31. Rg1 {[%clk 0:00:38.8]} 31... Qxc4 {[%clk 0:01:06.7]} 32. Be1
{[%clk 0:00:33.7]} 32... Qxa2 {[%clk 0:00:59.2]} 33. Kxh3 {[%clk 0:00:29.3]}
33... Bxg3 {[%clk 0:00:59]} 34. Rxg3 {[%clk 0:00:30.2]} 34... f4+ {[%clk
0:00:59.4]} 35. Bg4 {[%clk 0:00:21.4]} 35... Rxg4 {[%clk 0:00:54.6]} 36. Rxg4
{[%clk 0:00:20.8]} 36... Qxd5 {[%clk 0:00:55]} 37. Qh4+ {[%clk 0:00:20.2]} 37...
Qh5 {[%clk 0:00:53.2]} 38. Qxh5# {[%clk 0:00:20.8]} 1-0